[Event "GER-ch Youth U14w 2019"]
[Site "Willingen"]
[Date "2019.06.09"]
[Round "2.8"]
[White "Adelhardt, Lisa"]
[Black "Becker, Linda"]
[Result "1/2-1/2"]
[ECO "C01"]
[WhiteElo "1293"]
[BlackElo "1683"]
[Annotator "NA"]
[PlyCount "65"]
[EventDate "2019.06.07"]
[EventType "swiss"]
[EventRounds "9"]
[EventCountry "GER"]
[SourceTitle "playchess.com"]
[Source "ChessBase"]
[SourceQuality "1"]
[TimeControl "40/5400+30:1800+30"]

1. e4 {[%emt 0:00:00]} e6 {[%emt 0:00:00]} 2. d4 {[%emt 0:00:00]} d5 {[%emt 0:00:00]} 3. exd5 {[%emt 0:00:00]} Qxd5 {[%emt 0:00:33]} 4. Nf3 {[%emt 0:03:13]} Nf6 {[%emt 0:01:42]} 5. Bd3 {[%emt 0:04:28]} Be7 {[%emt 0:02:29]} 6. O-O {[%emt 0:02:56]} O-O {[%emt 0:01:20]} 7. Nc3 {[%emt 0:02:51]} Qd8 {[%emt 0:01:00]} 8. a3 {[%emt 0:01:16]} b6 {[%emt 0:03:12]} 9. Re1 {[%emt 0:05:07]} Bb7 {[%emt 0:04:41]} 10. Be3 {[%emt 0:07:51]} Nbd7 {[%emt 0:02:27]} 11. Qe2 {[%emt 0:04:39]} Qc8 {[%emt 0:09:22]} 12. Rad1 {[%emt 0:05:51]} c5 {[%emt 0:02:29]} 13. dxc5 {[%emt 0:02:55]} Nxc5 {[%emt 0:00:35]} 14. Bxc5 {[%emt 0:02:02]} Bxc5 {[%emt 0:01:08]} 15. Ne4 {[%emt 0:04:17]} Be7 {[%emt 0:02:11]} 16. Nfg5 {[%emt 0:04:03]} Nxe4 {[%emt 0:07:03]} 17. Nxe4 {[%emt 0:02:15]} f5 {[%emt 0:08:24]} 18. Ng3 {[%emt 0:06:29]} Rf6 {[%emt 0:00:54]} 19. Nxf5 {[%emt 0:13:11]} Bxa3 {[%emt 0:11:09]} 20. bxa3 {[%emt 0:17:11]} exf5 {[%emt 0:00:58]} 21. Bc4+ {[%emt 0:01:43]} Kh8 {[%emt 0:01:06]} 22. Bd5 {[%emt 0:00:55]} Bxd5 {[%emt 0:02:59]} 23. Rxd5 {[%emt 0:00:26]} Qf8 {[%emt 0:02:00]} 24. Rd3 {[%emt 0:02:29]} h6 {[%emt 0:02:35]} 25. g3 {[%emt 0:02:02]} Qf7 {[%emt 0:03:29]} 26. Re3 {[%emt 0:01:10]} Qd5 {[%emt 0:02:39]} 27. Rd3 {[%emt 0:01:34]} Qc5 {[%emt 0:01:45]} 28. Re3 {[%emt 0:01:08]} Rc8 {[%emt 0:02:44]} 29. Re8+ {[%emt 0:01:02]} Rxe8 {[%emt 0:00:11]} 30. Qxe8+ {[%emt 0:00:07]} Kh7 {[%emt 0:00:36]} 31. Qa4 {[%emt 0:00:52]} b5 {[%emt 0:01:40]} 32. Qb3 {[%emt 0:00:15]} a5 {[%emt 0:02:09]} 33. Rb1 {[%emt 0:00:47] normal} 1/2-1/2

[Event "GER-ch Youth U14w 2019"]
[Site "Willingen"]
[Date "2019.06.09"]
[Round "2.9"]
[White "Zixin, Li"]
[Black "Bildat, Emilia"]
[Result "0-1"]
[ECO "B34"]
[WhiteElo "1284"]
[BlackElo "1649"]
[Annotator "NA"]
[PlyCount "39"]
[EventDate "2019.06.07"]
[EventType "swiss"]
[EventRounds "9"]
[EventCountry "GER"]
[SourceTitle "playchess.com"]
[Source "ChessBase"]
[SourceQuality "1"]
[TimeControl "40/5400+30:1800+30"]

1. e4 {[%emt 0:00:00]} c5 {[%emt 0:00:00]} 2. Nf3 {[%emt 0:00:00]} Nc6 {[%emt 0:00:00]} 3. d4 {[%emt 0:00:00]} cxd4 {[%emt 0:00:00]} 4. Nxd4 {[%emt 0:00:03]} g6 {[%emt 0:00:16]} 5. Nc3 {[%emt 0:02:43]} Bg7 {[%emt 0:00:11]} 6. Nb3 {[%emt 0:06:08]} d6 {[%emt 0:01:07]} 7. Be3 Be6 {[%emt 0:01:17]} 8. Qd2 {[%emt 0:05:55]} h5 {[%emt 0:04:40]} 9. f3 {[%emt 0:03:24]} Nf6 {[%emt 0:01:01]} 10. O-O-O {[%emt 0:00:26]} Bxb3 {[%emt 0:06:34]} 11. cxb3 {[%emt 0:02:29]} Rc8 {[%emt 0:00:37]} 12. Kb1 {[%emt 0:00:04]} Nd7 {[%emt 0:03:00]} 13. Rc1 {[%emt 0:00:50]} Nc5 {[%emt 0:01:38]} 14. h4 {[%emt 0:05:58]} a6 {[%emt 0:04:55]} 15. g4 {[%emt 0:01:13]} hxg4 {[%emt 0:04:20]} 16. Bxc5 {[%emt 0:00:14]} dxc5 {[%emt 0:00:43]} 17. Qxd8+ {[%emt 0:00:41]} Rxd8 {[%emt 0:00:05]} 18. fxg4 {[%emt 0:00:07]} Ne5 {[%emt 0:05:28]} 19. g5 {[%emt 0:03:45]} Nf3 {[%emt 0:02:01]} 20. Nd5 {[%emt 0:01:04] normal} 0-1

[Event "GER-ch Youth U14w 2019"]
[Site "Willingen"]
[Date "2019.06.09"]
[Round "2.10"]
[White "Sinner, Joselyne"]
[Black "Orlova, Alicia"]
[Result "0-1"]
[ECO "C48"]
[WhiteElo "1521"]
[BlackElo "1490"]
[Annotator "NA"]
[PlyCount "78"]
[EventDate "2019.06.07"]
[EventType "swiss"]
[EventRounds "9"]
[EventCountry "GER"]
[SourceTitle "playchess.com"]
[Source "ChessBase"]
[SourceQuality "1"]
[TimeControl "40/5400+30:1800+30"]

1. e4 {[%emt 0:00:00]} e5 {[%emt 0:00:00]} 2. Nf3 {[%emt 0:00:00]} Nc6 {[%emt 0:00:00]} 3. Nc3 {[%emt 0:00:00]} Nf6 {[%emt 0:00:16]} 4. Bb5 {[%emt 0:00:00]} d6 {[%emt 0:02:29]} 5. d4 {[%emt 0:00:30]} exd4 {[%emt 0:01:14]} 6. Nxd4 {[%emt 0:00:10]} Bd7 {[%emt 0:00:41]} 7. Bg5 {[%emt 0:05:23]} Be7 {[%emt 0:04:05]} 8. Bf4 {[%emt 0:16:49]} O-O {[%emt 0:08:16]} 9. O-O {[%emt 0:00:59]} Re8 {[%emt 0:11:18]} 10. Re1 {[%emt 0:09:18]} Bf8 {[%emt 0:03:47]} 11. Nxc6 {[%emt 0:05:29]} bxc6 {[%emt 0:00:44]} 12. Bc4 {[%emt 0:03:14]} Be6 {[%emt 0:01:57]} 13. Bxe6 {[%emt 0:08:33]} fxe6 {[%emt 0:02:39]} 14. e5 {[%emt 0:14:00]} Nd5 {[%emt 0:00:35]} 15. Nxd5 {[%emt 0:00:57]} cxd5 {[%emt 0:01:26]} 16. exd6 {[%emt 0:02:09]} Bxd6 {[%emt 0:01:51]} 17. Bxd6 {[%emt 0:00:28]} Qxd6 {[%emt 0:00:19]} 18. Qd3 {[%emt 0:02:49]} e5 {[%emt 0:04:25]} 19. Rad1 {[%emt 0:02:16]} Rad8 {[%emt 0:01:16]} 20. Qg3 {[%emt 0:07:12]} e4 {[%emt 0:01:34]} 21. Qxd6 {[%emt 0:02:28]} Rxd6 {[%emt 0:00:19]} 22. c3 {[%emt 0:02:23]} c5 {[%emt 0:02:16]} 23. Rd2 {[%emt 0:03:43]} d4 {[%emt 0:02:05]} 24. cxd4 {[%emt 0:02:51]} cxd4 {[%emt 0:00:24]} 25. Red1 {[%emt 0:01:10]} d3 {[%emt 0:04:14]} 26. Kf1 {[%emt 0:01:04]} Rc6 {[%emt 0:01:30]} 27. Ke1 {[%emt 0:01:28]} Kf7 {[%emt 0:04:56]} 28. g3 {[%emt 0:03:35]} Kg6 {[%emt 0:02:31]} 29. f3 {[%emt 0:01:12]} Rc2 {[%emt 0:07:16]} 30. Rxc2 {[%emt 0:01:22]} dxc2 {[%emt 0:01:46]} 31. Rc1 {[%emt 0:00:12]} exf3+ {[%emt 0:03:22]} 32. Kf2 {[%emt 0:01:05]} Re2+ {[%emt 0:00:18]} 33. Kxf3 {[%emt 0:00:37]} Rxh2 {[%emt 0:00:19]} 34. b4 {[%emt 0:02:23]} Kf5 {[%emt 0:00:57]} 35. a4 {[%emt 0:00:30]} Ke5 {[%emt 0:00:31]} 36. Ke3 {[%emt 0:00:45]} Kd5 {[%emt 0:01:11]} 37. Kd3 {[%emt 0:00:52]} h5 {[%emt 0:01:55]} 38. Rxc2 {[%emt 0:00:12]} Rxc2 {[%emt 0:00:19]} 39. Kxc2 {[%emt 0:00:06]} Kc4 {[%emt 0:00:14] normal} 0-1

[Event "GER-ch Youth U14w 2019"]
[Site "Willingen"]
[Date "2019.06.09"]
[Round "2.12"]
[White "Avetyan, Manan"]
[Black "Gerber, Anna Sophie"]
[Result "1/2-1/2"]
[ECO "B47"]
[WhiteElo "1307"]
[BlackElo "1473"]
[Annotator "NA"]
[PlyCount "26"]
[EventDate "2019.06.07"]
[EventType "swiss"]
[EventRounds "9"]
[EventCountry "GER"]
[SourceTitle "playchess.com"]
[Source "ChessBase"]
[SourceQuality "1"]
[TimeControl "40/5400+30:1800+30"]

1. e4 {[%emt 0:00:00]} c5 {[%emt 0:00:00]} 2. Nf3 {[%emt 0:00:00]} e6 {[%emt 0:00:00]} 3. d4 {[%emt 0:00:13]} cxd4 {[%emt 0:00:00]} 4. Nxd4 {[%emt 0:00:07]} Nc6 {[%emt 0:00:10]} 5. Nc3 {[%emt 0:00:30]} Qc7 {[%emt 0:00:17]} 6. g3 {[%emt 0:01:56]} a6 {[%emt 0:00:59]} 7. Bg2 {[%emt 0:01:35]} Be7 {[%emt 0:01:11]} 8. O-O {[%emt 0:01:11]} Nf6 {[%emt 0:01:09]} 9. Re1 {[%emt 0:02:01]} d6 {[%emt 0:01:03]} 10. Nxc6 {[%emt 0:04:48]} bxc6 {[%emt 0:00:34]} 11. e5 {[%emt 0:11:59]} dxe5 {[%emt 0:01:43]} 12. Rxe5 {[%emt 0:00:50]} Nd5 {[%emt 0:03:31]} 13. Nxd5 {[%emt 0:03:26]} cxd5 {[%emt 0:00:34] normal} 1/2-1/2

[Event "GER-ch Youth U14w 2019"]
[Site "Willingen"]
[Date "2019.06.10"]
[Round "3.1"]
[White "Doll, Rebecca"]
[Black "Heutling, Elina"]
[Result "1-0"]
[ECO "C55"]
[WhiteElo "1678"]
[BlackElo "1712"]
[Annotator "NA"]
[PlyCount "54"]
[EventDate "2019.06.07"]
[EventType "swiss"]
[EventRounds "9"]
[EventCountry "GER"]
[SourceTitle "playchess.com"]
[Source "ChessBase"]
[SourceQuality "1"]
[TimeControl "40/5400+30:1800+30"]

1. e4 {[%emt 0:00:00]} e5 {[%emt 0:00:00]} 2. Nf3 {[%emt 0:00:00]} Nc6 {[%emt 0:00:00]} 3. Bc4 {[%emt 0:00:00]} Nf6 {[%emt 0:00:10]} 4. d3 {[%emt 0:00:00]} Be7 {[%emt 0:00:12]} 5. O-O {[%emt 0:00:11]} O-O {[%emt 0:00:24]} 6. Bb3 {[%emt 0:00:15]} d6 {[%emt 0:00:30]} 7. c3 {[%emt 0:03:53]} Na5 {[%emt 0:05:24]} 8. Bc2 {[%emt 0:00:43]} c5 {[%emt 0:01:18]} 9. Nbd2 {[%emt 0:04:47]} Nc6 {[%emt 0:03:53]} 10. Re1 {[%emt 0:02:14]} Re8 {[%emt 0:02:18]} 11. Nf1 {[%emt 0:03:38]} h6 {[%emt 0:01:49]} 12. Ng3 {[%emt 0:06:17]} Bf8 {[%emt 0:01:49]} 13. h3 {[%emt 0:05:36]} a6 {[%emt 0:11:15]} 14. Be3 {[%emt 0:04:26]} b5 {[%emt 0:08:29]} 15. d4 {[%emt 0:06:15]} cxd4 {[%emt 0:06:19]} 16. cxd4 {[%emt 0:00:30]} Bb7 {[%emt 0:09:06]} 17. a3 {[%emt 0:05:43]} Qc7 {[%emt 0:11:15]} 18. Rc1 {[%emt 0:01:03]} Rac8 {[%emt 0:01:28]} 19. Bb1 {[%emt 0:10:50]} Qb8 {[%emt 0:03:30]} 20. Qd2 {[%emt 0:03:01]} exd4 {[%emt 0:09:28]} 21. Nxd4 {[%emt 0:00:47]} Ne5 {[%emt 0:01:18]} 22. Ndf5 {[%emt 0:08:30]} Nc4 {[%emt 0:04:47]} 23. Qd4 {[%emt 0:00:41]} Nxe3 {[%emt 0:02:15]} 24. Nxe3 {[%emt 0:00:37]} Rxc1 {[%emt 0:03:02]} 25. Rxc1 {[%emt 0:00:09]} Qd8 {[%emt 0:00:57]} 26. Rd1 {[%emt 0:06:19]} Qc7 {[%emt 0:03:51]} 27. Nef5 {[%emt 0:02:48]} h5 {[%emt 0:02:22] normal} 1-0

[Event "GER-ch Youth U14w 2019"]
[Site "Willingen"]
[Date "2019.06.10"]
[Round "3.2"]
[White "Yue, Qizhou"]
[Black "Zoellner, Bente"]
[Result "1-0"]
[ECO "B24"]
[WhiteElo "1840"]
[BlackElo "1530"]
[Annotator "NA"]
[PlyCount "23"]
[EventDate "2019.06.07"]
[EventType "swiss"]
[EventRounds "9"]
[EventCountry "GER"]
[SourceTitle "playchess.com"]
[Source "ChessBase"]
[SourceQuality "1"]
[TimeControl "40/5400+30:1800+30"]

1. e4 {[%emt 0:00:00]} c5 {[%emt 0:00:00]} 2. Nc3 {[%emt 0:00:00]} Nc6 {[%emt 0:00:05]} 3. Bb5 {[%emt 0:00:03]} g6 {[%emt 0:00:46]} 4. Bxc6 {[%emt 0:00:56]} dxc6 {[%emt 0:00:24]} 5. f4 {[%emt 0:00:19]} Bg7 {[%emt 0:01:28]} 6. Nf3 {[%emt 0:00:28]} Nf6 {[%emt 0:01:08]} 7. d3 {[%emt 0:01:02]} Bd7 {[%emt 0:02:47]} 8. O-O {[%emt 0:01:22]} O-O {[%emt 0:00:35]} 9. Qe1 {[%emt 0:01:47]} Qc7 {[%emt 0:04:00]} 10. f5 {[%emt 0:06:18]} a5 {[%emt 0:13:18]} 11. Qh4 {[%emt 0:08:52]} b6 {[%emt 0:21:59]} 12. Bh6 {[%emt 0:03:44] normal} 1-0

[Event "GER-ch Youth U14w 2019"]
[Site "Willingen"]
[Date "2019.06.10"]
[Round "3.3"]
[White "Peglau, Mirjam"]
[Black "Bashylina, Luisa"]
[Result "0-1"]
[ECO "E83"]
[WhiteElo "1746"]
[BlackElo "1886"]
[Annotator "NA"]
[PlyCount "85"]
[EventDate "2019.06.07"]
[EventType "swiss"]
[EventRounds "9"]
[EventCountry "GER"]
[SourceTitle "playchess.com"]
[Source "ChessBase"]
[SourceQuality "1"]
[TimeControl "40/5400+30:1800+30"]

1. d4 {[%emt 0:00:00]} Nf6 {[%emt 0:00:00]} 2. c4 {[%emt 0:00:00]} g6 {[%emt 0:00:58]} 3. Nc3 {[%emt 0:00:00]} Bg7 {[%emt 0:00:04]} 4. e4 {[%emt 0:00:00]} d6 {[%emt 0:00:03]} 5. f3 {[%emt 0:00:00]} O-O {[%emt 0:00:56]} 6. Be3 {[%emt 0:00:00]} Nc6 {[%emt 0:01:05]} 7. Bd3 {[%emt 0:00:49]} e5 {[%emt 0:04:57]} 8. d5 {[%emt 0:06:27]} Nb4 {[%emt 0:04:54]} 9. Bb1 {[%emt 0:02:45]} Nh5 {[%emt 0:05:14]} 10. Nge2 {[%emt 0:01:02]} f5 {[%emt 0:04:51]} 11. exf5 {[%emt 0:00:44]} gxf5 {[%emt 0:02:00]} 12. a3 {[%emt 0:02:16]} Na6 {[%emt 0:00:26]} 13. O-O {[%emt 0:02:02]} b6 {[%emt 0:03:27]} 14. Bc2 {[%emt 0:09:08]} Bd7 {[%emt 0:06:40]} 15. Qd2 {[%emt 0:01:00]} Kh8 {[%emt 0:01:30]} 16. b4 {[%emt 0:02:39]} Rg8 {[%emt 0:05:56]} 17. Bd3 {[%emt 0:06:13]} Qc8 {[%emt 0:05:09]} 18. Rac1 {[%emt 0:02:25]} f4 {[%emt 0:05:06]} 19. Bf2 {[%emt 0:00:35]} Bh3 {[%emt 0:02:13]} 20. c5 {[%emt 0:07:39]} Bxg2 {[%emt 0:02:21]} 21. Kxg2 {[%emt 0:00:11]} Bf6+ {[%emt 0:05:19]} 22. Ng3 {[%emt 0:00:58]} fxg3 {[%emt 0:00:19]} 23. hxg3 {[%emt 0:03:05]} Nf4+ {[%emt 0:00:30]} 24. Kg1 {[%emt 0:01:01]} Qh3 {[%emt 0:01:28]} 25. Be1 {[%emt 0:00:51]} Rxg3+ {[%emt 0:15:55]} 26. Bxg3 {[%emt 0:00:09]} Qxg3+ {[%emt 0:00:22]} 27. Kh1 {[%emt 0:00:10]} Qh3+ {[%emt 0:00:49]} 28. Qh2 {[%emt 0:01:04]} Qxh2+ {[%emt 0:01:57]} 29. Kxh2 {[%emt 0:00:01]} Nxd3 {[%emt 0:00:17]} 30. Rcd1 {[%emt 0:00:23]} Nb2 {[%emt 0:03:30]} 31. Rb1 {[%emt 0:00:42]} Nc4 {[%emt 0:00:31]} 32. Ne4 {[%emt 0:00:13]} Be7 {[%emt 0:01:11]} 33. cxd6 {[%emt 0:00:09]} cxd6 {[%emt 0:01:30]} 34. Rbc1 {[%emt 0:00:17]} Ne3 {[%emt 0:00:31]} 35. Rf2 {[%emt 0:01:29]} Nxd5 {[%emt 0:00:33]} 36. Rd2 {[%emt 0:00:36]} Ne3 {[%emt 0:07:51]} 37. Nxd6 {[%emt 0:02:21]} Rf8 {[%emt 0:01:05]} 38. Nb5 {[%emt 0:03:17]} Bg5 {[%emt 0:01:02]} 39. Rd7 {[%emt 0:03:16]} Ng4+ {[%emt 0:01:32]} 40. fxg4 {[%emt 0:00:03]} Bxc1 {[%emt 0:00:24]} 41. Rxa7 {[%emt 0:30:05]} Nb8 {[%emt 0:30:46]} 42. Rb7 {[%emt 0:00:33]} Be3 {[%emt 0:01:33]} 43. Nd6 {[%emt 0:00:40] normal} 0-1

[Event "GER-ch Youth U14w 2019"]
[Site "Willingen"]
[Date "2019.06.10"]
[Round "3.4"]
[White "Oswald, Hannah"]
[Black "Schmidt, Pauline"]
[Result "1-0"]
[ECO "B97"]
[WhiteElo "1632"]
[BlackElo "1620"]
[Annotator "NA"]
[PlyCount "32"]
[EventDate "2019.06.07"]
[EventType "swiss"]
[EventRounds "9"]
[EventCountry "GER"]
[SourceTitle "playchess.com"]
[Source "ChessBase"]
[SourceQuality "1"]
[TimeControl "40/5400+30:1800+30"]

1. e4 {[%emt 0:00:00]} c5 {[%emt 0:00:00]} 2. Nf3 {[%emt 0:00:00]} d6 {[%emt 0:00:00]} 3. d4 {[%emt 0:00:00]} cxd4 {[%emt 0:00:00]} 4. Nxd4 {[%emt 0:00:00]} Nf6 {[%emt 0:00:00]} 5. Nc3 {[%emt 0:00:20]} a6 {[%emt 0:00:06]} 6. Bg5 {[%emt 0:00:29]} e6 {[%emt 0:00:13]} 7. f4 {[%emt 0:00:18]} Qb6 {[%emt 0:00:50]} 8. Nb3 {[%emt 0:07:40]} Nc6 {[%emt 0:05:09]} 9. Qf3 {[%emt 0:05:06]} Be7 {[%emt 0:08:35]} 10. O-O-O {[%emt 0:04:02]} Bd7 {[%emt 0:01:39]} 11. g4 {[%emt 0:05:05]} O-O-O {[%emt 0:05:31]} 12. Bh3 {[%emt 0:18:53]} Kb8 {[%emt 0:05:03]} 13. Bh4 {[%emt 0:06:02]} h6 {[%emt 0:02:01]} 14. Bf2 {[%emt 0:00:41]} Qc7 {[%emt 0:00:45]} 15. Qe3 {[%emt 0:09:23]} Kc8 {[%emt 0:10:22]} 16. Kb1 {[%emt 0:06:34]} Rde8 {[%emt 0:21:42] normal} 1-0

[Event "GER-ch Youth U14w 2019"]
[Site "Willingen"]
[Date "2019.06.10"]
[Round "3.5"]
[White "Reuter, Elisa"]
[Black "Bildat, Emilia"]
[Result "1-0"]
[ECO "B31"]
[WhiteElo "1923"]
[BlackElo "1649"]
[Annotator "NA"]
[PlyCount "63"]
[EventDate "2019.06.07"]
[EventType "swiss"]
[EventRounds "9"]
[EventCountry "GER"]
[SourceTitle "playchess.com"]
[Source "ChessBase"]
[SourceQuality "1"]
[TimeControl "40/5400+30:1800+30"]

1. e4 {[%emt 0:00:00]} c5 {[%emt 0:00:00]} 2. Nf3 {[%emt 0:00:00]} Nc6 {[%emt 0:00:00]} 3. Bb5 {[%emt 0:00:00]} g6 {[%emt 0:00:00]} 4. O-O {[%emt 0:00:00]} Bg7 {[%emt 0:00:01]} 5. c3 {[%emt 0:00:22]} e5 {[%emt 0:01:17]} 6. Re1 {[%emt 0:00:47]} Nge7 {[%emt 0:01:32]} 7. a4 {[%emt 0:07:33]} O-O {[%emt 0:02:37]} 8. Bc4 {[%emt 0:01:18]} d6 {[%emt 0:05:25]} 9. Na3 {[%emt 0:03:11]} a6 {[%emt 0:04:35]} 10. d3 {[%emt 0:05:11]} Bd7 {[%emt 0:02:24]} 11. Ba2 {[%emt 0:01:44]} Rb8 {[%emt 0:02:53]} 12. Be3 {[%emt 0:11:02]} b5 {[%emt 0:03:51]} 13. axb5 {[%emt 0:06:43]} axb5 {[%emt 0:00:39]} 14. d4 {[%emt 0:04:38]} c4 {[%emt 0:14:13]} 15. dxe5 {[%emt 0:10:52]} dxe5 {[%emt 0:01:48]} 16. Bc5 {[%emt 0:02:01]} Bg4 {[%emt 0:04:48]} 17. Qe2 {[%emt 0:04:44]} Qd3 {[%emt 0:12:14]} 18. Qxd3 {[%emt 0:06:00]} cxd3 {[%emt 0:00:06]} 19. Rad1 {[%emt 0:00:06]} Rfd8 {[%emt 0:03:36]} 20. Bb1 {[%emt 0:00:36]} Bxf3 {[%emt 0:03:54]} 21. gxf3 {[%emt 0:00:13]} d2 {[%emt 0:00:28]} 22. Re2 {[%emt 0:00:07]} Bh6 {[%emt 0:00:41]} 23. Be3 {[%emt 0:00:05]} Kg7 {[%emt 0:01:37]} 24. Rexd2 {[%emt 0:00:49]} Rxd2 {[%emt 0:02:53]} 25. Rxd2 {[%emt 0:00:06]} b4 {[%emt 0:00:22]} 26. cxb4 {[%emt 0:06:40]} Rxb4 {[%emt 0:01:49]} 27. Ba2 {[%emt 0:01:05]} Nd4 {[%emt 0:02:23]} 28. Kg2 {[%emt 0:00:52]} Nec6 {[%emt 0:04:00]} 29. Bxh6+ {[%emt 0:08:19]} Kxh6 {[%emt 0:00:19]} 30. Bxf7 {[%emt 0:00:09]} Rb7 {[%emt 0:02:20]} 31. Bd5 {[%emt 0:00:37]} Kg5 {[%emt 0:01:28]} 32. Kg3 {[%emt 0:04:31] normal} 1-0

[Event "GER-ch Youth U14w 2019"]
[Site "Willingen"]
[Date "2019.06.10"]
[Round "3.6"]
[White "Orlova, Alicia"]
[Black "Liu, Sijia Anna"]
[Result "1-0"]
[ECO "B40"]
[WhiteElo "1490"]
[BlackElo "1705"]
[Annotator "NA"]
[PlyCount "58"]
[EventDate "2019.06.07"]
[EventType "swiss"]
[EventRounds "9"]
[EventCountry "GER"]
[SourceTitle "playchess.com"]
[Source "ChessBase"]
[SourceQuality "1"]
[TimeControl "40/5400+30:1800+30"]

1. e4 {[%emt 0:00:00]} c5 {[%emt 0:00:00]} 2. Nf3 {[%emt 0:00:00]} e6 {[%emt 0:00:00]} 3. g3 {[%emt 0:00:09]} Nc6 {[%emt 0:01:14]} 4. Bg2 {[%emt 0:00:26]} g6 {[%emt 0:03:35]} 5. c3 {[%emt 0:02:24]} Bg7 {[%emt 0:03:47]} 6. O-O {[%emt 0:04:33]} Nge7 {[%emt 0:05:52]} 7. d3 {[%emt 0:03:05]} O-O {[%emt 0:01:57]} 8. Be3 {[%emt 0:02:06]} d6 {[%emt 0:01:38]} 9. Qd2 {[%emt 0:02:35]} Qc7 {[%emt 0:04:49]} 10. Bh6 {[%emt 0:02:13]} d5 {[%emt 0:09:59]} 11. Bxg7 {[%emt 0:00:58]} Kxg7 {[%emt 0:00:13]} 12. exd5 {[%emt 0:00:24]} Nxd5 {[%emt 0:02:15]} 13. Na3 {[%emt 0:08:59]} a6 {[%emt 0:04:10]} 14. Nc4 {[%emt 0:05:07]} Rd8 {[%emt 0:09:30]} 15. Rad1 {[%emt 0:08:27]} b5 {[%emt 0:08:06]} 16. Ne3 {[%emt 0:00:21]} Nf6 {[%emt 0:00:35]} 17. b3 {[%emt 0:03:51]} Bb7 {[%emt 0:02:32]} 18. Qb2 {[%emt 0:01:31]} Rac8 {[%emt 0:07:56]} 19. Rd2 {[%emt 0:04:47]} Rd7 {[%emt 0:04:05]} 20. Rfd1 {[%emt 0:01:26]} Rcd8 {[%emt 0:01:22]} 21. Nc2 {[%emt 0:03:33]} Qb6 {[%emt 0:04:14]} 22. h3 {[%emt 0:07:46]} Kg8 {[%emt 0:03:01]} 23. Ne3 {[%emt 0:07:34]} Qc7 {[%emt 0:05:19]} 24. Nc2 {[%emt 0:01:05]} Ne5 {[%emt 0:01:23]} 25. Nxe5 {[%emt 0:01:06]} Qxe5 {[%emt 0:00:03]} 26. Bxb7 {[%emt 0:00:39]} Rxb7 {[%emt 0:00:07]} 27. d4 {[%emt 0:04:58]} Qh5 {[%emt 0:03:02]} 28. dxc5 {[%emt 0:04:56]} Rxd2 29. Rxd2 {[%emt 0:00:12]} Qxc5 {[%emt 0:00:55] normal} 1-0

[Event "GER-ch Youth U14w 2019"]
[Site "Willingen"]
[Date "2019.06.10"]
[Round "3.7"]
[White "Wagner, Margarethe"]
[Black "Adelhardt, Lisa"]
[Result "0-1"]
[ECO "C50"]
[WhiteElo "1741"]
[BlackElo "1293"]
[Annotator "NA"]
[PlyCount "58"]
[EventDate "2019.06.07"]
[EventType "swiss"]
[EventRounds "9"]
[EventCountry "GER"]
[SourceTitle "playchess.com"]
[Source "ChessBase"]
[SourceQuality "1"]
[TimeControl "40/5400+30:1800+30"]

1. e4 {[%emt 0:00:00]} e5 {[%emt 0:00:00]} 2. Nf3 {[%emt 0:00:00]} Nc6 {[%emt 0:00:00]} 3. Bc4 {[%emt 0:00:00]} Bc5 {[%emt 0:00:02]} 4. O-O {[%emt 0:05:54]} Nf6 {[%emt 0:04:28]} 5. d3 {[%emt 0:07:01]} h6 {[%emt 0:04:10]} 6. c3 {[%emt 0:02:17]} d6 {[%emt 0:03:37]} 7. a4 {[%emt 0:04:02]} a5 {[%emt 0:07:51]} 8. h3 {[%emt 0:04:24]} O-O {[%emt 0:03:44]} 9. Re1 {[%emt 0:02:30]} Be6 {[%emt 0:06:15]} 10. Na3 {[%emt 0:04:10]} d5 {[%emt 0:08:22]} 11. exd5 {[%emt 0:05:02]} Bxd5 {[%emt 0:04:44]} 12. Nxe5 {[%emt 0:10:25]} Nxe5 {[%emt 0:02:58]} 13. Rxe5 {[%emt 0:00:08]} Bxa3 {[%emt 0:00:53]} 14. Bxd5 {[%emt 0:02:37]} Bd6 {[%emt 0:03:32]} 15. Rf5 {[%emt 0:02:33]} Nxd5 {[%emt 0:03:34]} 16. Rxd5 {[%emt 0:00:59]} Bh2+ {[%emt 0:00:20]} 17. Kxh2 {[%emt 0:00:06]} Qxd5 {[%emt 0:00:06]} 18. Bf4 {[%emt 0:03:00]} Rac8 {[%emt 0:06:44]} 19. d4 {[%emt 0:03:21]} Rfe8 {[%emt 0:03:04]} 20. Qc2 {[%emt 0:02:38]} Qe4 {[%emt 0:02:14]} 21. Qxe4 {[%emt 0:00:06]} Rxe4 {[%emt 0:00:06]} 22. Kg3 {[%emt 0:04:24]} f6 {[%emt 0:09:07]} 23. Kf3 {[%emt 0:01:27]} Re7 {[%emt 0:01:04]} 24. Ra3 {[%emt 0:03:43]} g5 {[%emt 0:02:28]} 25. Be3 {[%emt 0:02:06]} f5 {[%emt 0:03:06]} 26. d5 {[%emt 0:02:19]} Rd7 {[%emt 0:03:42]} 27. c4 {[%emt 0:01:24]} c6 {[%emt 0:01:59]} 28. dxc6 {[%emt 0:04:13]} Rxc6 {[%emt 0:01:17]} 29. Rc3 {[%emt 0:02:00]} Kf7 {[%emt 0:03:53] normal} 0-1